[Event "Festival Groningen-A 2024"]
[Site "Groningen"]
[Date "2024.12.26"]
[Round "5.1"]
[White "Narayanan S L"]
[Black "Elgersma, Onno"]
[Result "1-0"]
[ECO "D37"]
[WhiteElo "2647"]
[BlackElo "2322"]
[Annotator "TA"]
[PlyCount "101"]
[EventDate "2024.12.21"]
[EventType "swiss"]
[EventCountry "NED"]
[SourceTitle "playchess.com"]
[Source "ChessBase"]
[SourceQuality "1"]
[TimeControl "40/5400+30:1800+30"]

{[%evp 9,101,19,25,15,12,4,10,11,13,15,33,25,18,16,93,45,68,57,77,47,36,34,88,75,65,78,66,66,87,49,38,33,37,0,12,0,0,8,16,18,458,436,435,331,441,406,427,377,386,356,377,350,365,362,362,364,331,199,200,199,258,257,281,295,344,318,384,368,363,378,370,358,436,453,452,666,1867,1777,2201,2116,7118,6400,5506,5506,11612,7631,6266,7739,5539,5539,5518,5518,29981,5189]} 1. d4 {[%emt 0:00:04]} d5 {[%emt 0:00:18]} 2. c4 {[%emt 0:00:07]} e6 {[%emt 0:00:06]} 3. Nf3 {[%emt 0:00:07]} Nf6 {[%emt 0:00:55]} 4. Nc3 {[%emt 0:00:07]} h6 {[%emt 0:06:46]} 5. e3 {[%emt 0:01:57]} Bd6 {[%emt 0:05:00]} 6. b3 {[%emt 0:01:25]} O-O {[%emt 0:00:48]} 7. Bb2 {[%emt 0:00:06]} b6 {[%emt 0:00:32]} 8. cxd5 {[%emt 0:00:22]} exd5 {[%emt 0:00:17]} 9. Bd3 {[%emt 0:00:23]} Bb7 {[%emt 0:02:34]} 10. O-O {[%emt 0:00:46]} a6 {[%emt 0:01:32]} 11. Ne5 {[%emt 0:03:31]} c5 {[%emt 0:07:42]} (11... Nbd7 $11) 12. Ne2 {[%emt 0:05:27] White is much more active. The black rooks are passive.} (12. Na4 $16) 12... Re8 $14 {[%emt 0:12:59]} 13. f4 {[%emt 0:06:10]} Nc6 {[%emt 0:02:43]} 14. Rc1 {[%emt 0:05:26]} Rc8 {[%emt 0:05:19]} 15. Ng3 {[%emt 0:06:22]} cxd4 {[%emt 0:10:05]} (15... Rc7 $14) 16. exd4 $16 {[%emt 0:00:30]} Nb4 {[%emt 0:00:33]} 17. Rxc8 {[%emt 0:03:37]} Qxc8 {[%emt 0:01:14]} 18. Bb1 {[%emt 0:06:42]} Bf8 $1 {[%emt 0:06:40]} 19. a3 {[%emt 0:06:28]} Nc6 {[%emt 0:00:04]} 20. Qf3 {[%emt 0:05:01]} Ne7 {[%emt 0:10:17]} 21. Rc1 {[%emt 0:07:20]} Qd8 {[%emt 0:01:30]} 22. Nh5 {[%emt 0:17:37] Threatening Nxf6+.} Ne4 {[%emt 0:08:01]} 23. f5 {[%emt 0:00:11]} f6 {[%emt 0:04:12]} 24. Ng4 $36 {[%emt 0:00:12][%mdl 2048] White is more active.} Nd2 $2 {[%emt 0:02:36][%mdl 8192]} (24... Kh8 $11) 25. Qg3 {[%emt 0:05:13]} Kh8 {[%emt 0:01:46]} 26. Ngxf6 {[%emt 0:01:01]} gxf6 {[%emt 0:00:12]} 27. Nxf6 {[%emt 0:00:21]} Nxb1 {[%emt 0:00:38]} 28. Rc7 {[%emt 0:06:10]} (28. Rxb1 Bg7 29. Nxe8 Qxe8 $16) 28... Bg7 {[%emt 0:04:32]} 29. Nxe8 {[%emt 0:00:14]} Qxe8 {[%emt 0:01:22]} 30. Qe1 {[%emt 0:02:31]} Bf6 {[%emt 0:01:00]} 31. Rxb7 {[%emt 0:00:14]} Qc8 {[%emt 0:00:12]} 32. Rxb6 {[%emt 0:00:44]} ({Don't do} 32. Rxe7 Bxe7 33. Qxe7 (33. Qxb1 Bg5 $18) 33... Qxf5 $18) 32... Qxf5 {[%emt 0:00:12]} 33. Rxf6 {[%emt 0:02:21]} Qxf6 {[%emt 0:00:02]} 34. Qxb1 $18 {[%emt 0:00:06][%mdl 4096] Endgame KQB-KQN. White is two pawns up.} Nf5 {[%emt 0:00:07]} (34... Qe6 $142 35. Qc1 Kg8) 35. Qe1 {[%emt 0:00:14]} Kh7 {[%emt 0:01:14]} 36. Qe5 {[%emt 0:01:25]} Qf7 {[%emt 0:00:04]} 37. Bc1 {[%emt 0:00:51]} h5 {[%emt 0:00:30]} 38. Bg5 {[%emt 0:00:40]} Kg6 {[%emt 0:00:48]} 39. h4 {[%emt 0:00:18]} Ng7 {[%emt 0:00:31]} 40. b4 {[%emt 0:00:42] Hoping for a4.} Qf5 {[%emt 0:01:46]} 41. Qe2 {[%emt 0:32:58]} Qc8 {[%emt 0:32:47]} 42. a4 {[%emt 0:00:26][%cal Ba3a4,Ba4b5,Bb5b6,Bb6b7][%mdl 32]} Qc6 {[%emt 0:00:00]} 43. b5 {[%emt 0:00:00]} axb5 {[%emt 0:00:00]} 44. axb5 {[%emt 0:00:00]} Qb6 {[%emt 0:00:00]} 45. Qc2+ {[%emt 0:00:00]} Kf7 {[%emt 0:00:00]} 46. Qc5 {[%emt 0:00:00]} Qe6 {[%emt 0:00:00]} 47. b6 {[%emt 0:00:00] White threatens b7 and mate.} Nf5 {[%emt 0:00:00]} 48. Qc7+ {[%emt 0:00:00]} Kg6 {[%emt 0:00:00]} 49. b7 {[%emt 0:00:00]} Nxd4 {[%emt 0:00:00]} 50. Qe7 {[%emt 0:00:00]} ({Not} 50. b8=B Qe1+ 51. Kh2 Nf3+ 52. gxf3 Qf2+ 53. Kh3 Qf1+ 54. Kh2 (54. Kg3 Qg1+ 55. Kf4 Qd4+ 56. Kg3 Qg1+ 57. Kh3 Qf1+ 58. Kg3 Qg1+ $11) 54... Qf2+ 55. Kh1 Qf1+ 56. Kh2 Qf2+ $11) 50... Qb6 {[%emt 0:00:00] [#]} 51. Qf6+ $1 {[%emt 0:00:00][%mdl 512]} 1-0

[Event "Festival Groningen-A 2024"]
[Site "Groningen"]
[Date "2024.12.26"]
[Round "5.2"]
[White "Schoppen, Casper"]
[Black "Pham, Khoi"]
[Result "1/2-1/2"]
[ECO "A13"]
[WhiteElo "2539"]
[BlackElo "2285"]
[Annotator "TA"]
[PlyCount "113"]
[EventDate "2024.12.21"]
[EventType "swiss"]
[EventCountry "NED"]
[SourceTitle "playchess.com"]
[Source "ChessBase"]
[SourceQuality "1"]
[TimeControl "40/5400+30:1800+30"]

{[%evp 10,113,36,14,13,12,14,26,23,11,13,18,29,18,22,27,20,36,39,30,13,17,19,10,10,18,12,13,13,0,0,0,32,23,23,24,33,9,16,14,19,0,0,0,0,-10,-6,-2,0,0,0,0,0,0,42,44,39,41,47,37,40,40,49,57,64,64,62,46,53,57,55,61,48,0,47,0,0,0,0,0,0,0,0,0,0,0,0,0,0,0,0,0,0,0,0,0,0,0,0,0,0,0,0,0,0,0]} 1. c4 {[%emt 0:01:04]} e6 {[%emt 0:00:25]} 2. Nf3 {[%emt 0:02:34]} Nf6 {[%emt 0:00:31]} 3. g3 {[%emt 0:00:37]} d5 {[%emt 0:00:40]} 4. Bg2 {[%emt 0:01:30]} d4 {[%emt 0:01:26]} 5. O-O {[%emt 0:01:05]} Nc6 {[%emt 0:01:28]} 6. d3 {[%emt 0:04:56]} Bc5 {[%emt 0:01:41]} 7. Nbd2 {[%emt 0:00:46][%cal Bb1d2,Bd2b3,Bb3c5][%mdl 32]} O-O {[%emt 0:00:34]} 8. Nb3 {[%emt 0:00:14]} Be7 {[%emt 0:00:05] White has an edge.} 9. e3 {[%emt 0:00:29]} dxe3 {[%emt 0:01:26]} 10. Bxe3 {[%emt 0:00:09]} Ng4 {[%emt 0:00:07]} 11. Bc5 {[%emt 0:00:48]} Bxc5 {[%emt 0:00:11]} 12. Nxc5 {[%emt 0:00:05]} b6 {[%emt 0:00:04]} 13. Ne4 {[%emt 0:04:53]} Bb7 {[%emt 0:01:51]} 14. d4 {[%emt 0:03:45] Prevents Nge5} Rb8 {[%emt 0:02:20]} 15. Nc3 {[%emt 0:03:23]} Nf6 {[%emt 0:07:49]} 16. Re1 {[%emt 0:15:15]} Ne7 {[%emt 0:02:54]} 17. Ne5 {[%emt 0:02:13]} Bxg2 {[%emt 0:01:51]} 18. Kxg2 {[%emt 0:00:04]} c6 {[%emt 0:04:12]} 19. a4 {[%emt 0:13:22]} Qd6 {[%emt 0:06:23]} 20. Qd3 {[%emt 0:01:31]} Rfd8 {[%emt 0:04:57]} 21. Rad1 {[%emt 0:01:33]} Rbc8 {[%emt 0:09:35]} 22. Qf3 {[%emt 0:04:14] [#] And now Ne4 would win.} Rf8 $1 {[%emt 0:10:31]} 23. h4 {[%emt 0:05:18]} Nd7 {[%emt 0:08:22]} 24. Ne4 {[%emt 0:02:46]} (24. Nxd7 {simplifies} Qxd7 25. b3 Rcd8 26. d5) 24... Qc7 {[%emt 0:05:31]} 25. h5 {[%emt 0:03:16][%cal Oh5h6] Black must now prevent h6!} (25. Ng4 {simplifies} Rcd8 26. b4 h6 27. Nc3) 25... h6 {[%emt 0:00:39]} (25... Nxe5 26. dxe5 Ra8 27. g4 $14) 26. Qf4 {[%emt 0:04:41]} Nxe5 {[%emt 0:04:35]} 27. dxe5 {[%emt 0:00:50]} c5 {[%emt 0:01:53]} 28. Rd3 {[%emt 0:06:15]} Rcd8 {[%emt 0:01:27]} 29. Red1 {[%emt 0:00:26]} Rxd3 {[%emt 0:01:02]} 30. Rxd3 {[%emt 0:00:05]} Nc6 {[%emt 0:01:57]} 31. Rd6 {[%emt 0:01:09][%cal Oe4f6]} Nd4 {[%emt 0:00:28]} 32. g4 {[%emt 0:01:29][%cal Ob2b4]} Qb7 {[%emt 0:02:13]} 33. f3 {[%emt 0:00:38][%cal Ob2b3]} Qa6 $1 {[%emt 0:00:50][%csl LRa4,LRc4]} 34. Nxc5 {[%emt 0:10:19]} Qxc4 {[%emt 0:00:05]} 35. Qxd4 {[%emt 0:00:20]} ({Much worse is} 35. Rxd4 Qe2+ (35... Qxc5 36. Rc4 $11) 36. Kg3 bxc5 $11) 35... Qxd4 {[%emt 0:01:15]} 36. Rxd4 {[%emt 0:00:05]} bxc5 $14 {[%emt 0:00:04][%mdl 4096] Endgame. KR-KR} 37. Rc4 {[%emt 0:02:59]} Rb8 {[%emt 0:00:40]} 38. Rxc5 {[%emt 0:00:13] Hoping for Kg3.} Rxb2+ {[%emt 0:00:07]} 39. Kg3 {[%emt 0:00:04]} Rb4 {[%emt 0:02:16]} 40. Ra5 {[%emt 0:03:51]} Rb7 {[%emt 0:00:11]} 41. Rc5 {[%emt 0:02:45]} Rb4 {[%emt 0:01:59]} 42. Rc8+ {[%emt 0:03:25]} (42. a5 $1 $14 {is superior.}) 42... Kh7 $11 {[%emt 0:00:05] The position is equal.} 43. Rc7 {[%emt 0:00:06][%csl LRa7,LRf7]} Rxa4 {[%emt 0:00:29]} 44. Rxf7 {[%emt 0:00:06]} Kg8 $1 {[%emt 0:03:00] Inhibits Rf8+.} 45. Re7 {[%emt 0:01:47]} Ra6 {[%emt 0:00:06]} 46. Re8+ {[%emt 0:05:38]} Kf7 {[%emt 0:00:15]} 47. Rc8 {[%emt 0:00:04]} Ra1 {[%emt 0:02:16]} 48. Rc7+ {[%emt 0:00:13]} Kf8 {[%emt 0:00:07]} 49. f4 {[%emt 0:03:30]} a5 {[%emt 0:04:33]} 50. Rc8+ {[%emt 0:04:34]} Ke7 {[%emt 0:00:18]} 51. Rg8 {[%emt 0:01:47]} Kf7 {[%emt 0:00:08]} 52. Ra8 {[%emt 0:00:03]} a4 {[%emt 0:03:24]} 53. Ra7+ {[%emt 0:02:18]} Kf8 {[%emt 0:00:04]} 54. Ra8+ {[%emt 0:02:36]} Ke7 {[%emt 0:00:14]} 55. Ra7+ {[%emt 0:00:21]} Kf8 {[%emt 0:00:04]} 56. Ra8+ {[%emt 0:00:04]} Ke7 {[%emt 0:00:05]} 57. Ra7+ {[%emt 0:00:03] Weighted Error Value: White=0.04 (flawless) /Black=0.02 (flawless) .  Mistake:       	White=1     	---        Inaccurate:     	---       	Black=2      OK:         	White=21    	Black=32     Best:        	White=2     	Black=5      Strong:       	---       	Black=3} 1/2-1/2

[Event "Festival Groningen-A 2024"]
[Site "Groningen"]
[Date "2024.12.26"]
[Round "5.3"]
[White "Maatman, Nick"]
[Black "Kazakouski, Valery"]
[Result "1-0"]
[ECO "B90"]
[WhiteElo "2375"]
[BlackElo "2567"]
[Annotator "TA"]
[PlyCount "231"]
[EventDate "2024.12.21"]
[EventType "swiss"]
[EventCountry "NED"]
[SourceTitle "playchess.com"]
[Source "ChessBase"]
[SourceQuality "1"]
[TimeControl "40/5400+30:1800+30"]

{[%evp 124,231,427,433,418,472,446,415,420,407,415,379,646,547,686,437,686,686,686,583,585,569,686,639,631,594,595,587,585,585,574,575,584,584,630,616,593,577,572,564,525,501,1115,1108,1108,1081,29955,29956,29955,29956,29963,29963,29965,29965,29966,29967,29969,29970,29971,29972,29977,29978,29977,29970,29959,2658,29968,29970,29973,29970,29970,29971,29970,29972,29974,29976,29976,29976,29980,29981,29981,29981,29993,29958,29970,1183,29961,29963,29959,29964,29965,29965,29965,29965,29967,29966,29965,29967,29967,29958,29949,4527,29956,29959,12359,6298,29973,29974,29968,12359]} 1. e4 {[%emt 0:02:33]} c5 {[%emt 0:00:36]} 2. Nf3 {[%emt 0:00:05]} d6 {[%emt 0:00:08]} 3. d4 {[%emt 0:00:03]} cxd4 {[%emt 0:00:07]} 4. Nxd4 {[%emt 0:00:03]} Nf6 {[%emt 0:00:10]} 5. Nc3 {[%emt 0:00:03]} a6 {[%emt 0:00:12]} 6. Be3 {[%emt 0:00:03]} e5 {[%emt 0:00:10]} 7. Nb3 {[%emt 0:00:05]} Be7 {[%emt 0:00:17]} 8. h3 {[%emt 0:00:17]} Be6 {[%emt 0:01:17]} 9. g4 {[%emt 0:00:15]} h6 {[%emt 0:05:04]} 10. Qf3 {[%emt 0:07:15]} Nc6 {[%emt 0:14:45]} 11. O-O-O {[%emt 0:04:15]} Qc7 {[%emt 0:13:19]} 12. Kb1 {[%emt 0:03:50]} b5 {[%emt 0:08:55]} 13. Qg2 {[%emt 0:14:31]} Na5 {[%emt 0:10:43]} 14. Nxa5 {[%emt 0:07:56]} Qxa5 {[%emt 0:00:38]} 15. Nd5 {[%emt 0:00:15]} Nd7 {[%emt 0:08:50]} 16. f4 {[%emt 0:12:43]} Bh4 {[%emt 0:05:03]} 17. Bd2 {[%emt 0:05:35]} Qd8 {[%emt 0:01:07]} 18. Bb4 {[%emt 0:00:05]} Bxd5 {[%emt 0:04:18]} 19. Rxd5 {[%emt 0:03:56]} Be7 {[%emt 0:00:33]} 20. Bxd6 {[%emt 0:04:24]} Bxd6 {[%emt 0:00:47]} 21. Rxd6 {[%emt 0:00:02]} Qe7 {[%emt 0:00:33]} 22. fxe5 {[%emt 0:03:35]} Nxe5 {[%emt 0:01:46]} 23. Rd5 {[%emt 0:01:40]} O-O {[%emt 0:00:16]} 24. Qg3 {[%emt 0:03:33]} Rfe8 {[%emt 0:01:44]} 25. Bg2 {[%emt 0:00:13]} Rac8 {[%emt 0:01:43]} 26. Rhd1 {[%emt 0:01:03]} Rc6 {[%emt 0:02:03]} 27. Bf1 {[%emt 0:08:39]} Qc7 {[%emt 0:03:12]} 28. Bd3 {[%emt 0:04:57]} b4 {[%emt 0:05:14]} 29. Qh2 {[%emt 0:02:42]} Re7 {[%emt 0:01:43]} 30. Qd2 {[%emt 0:00:52]} a5 {[%emt 0:00:32]} 31. Bb5 {[%emt 0:00:56]} Rce6 {[%emt 0:02:24]} 32. Qd4 {[%emt 0:01:28]} Kh7 {[%emt 0:02:38]} 33. Qc5 {[%emt 0:02:35]} Qb7 {[%emt 0:02:23]} 34. b3 {[%emt 0:02:24]} Rc7 {[%emt 0:00:16]} 35. Qf2 {[%emt 0:00:57]} Rc3 {[%emt 0:01:41]} 36. Bd7 {[%emt 0:01:12]} Nxd7 {[%emt 0:02:37]} 37. Qf5+ {[%emt 0:00:37]} Rg6 {[%emt 0:00:07]} 38. Rxd7 {[%emt 0:00:07]} Qc6 {[%emt 0:01:05]} 39. h4 {[%emt 0:02:38]} Rc5 {[%emt 0:00:24]} 40. e5 {[%emt 0:01:31]} Qe6 {[%emt 0:00:36]} 41. Rxf7 {[%emt 0:12:45]} Rxe5 {[%emt 0:03:51]} 42. Qxe6 {[%emt 0:01:14]} Rexe6 {[%emt 0:02:32]} 43. Rf4 {[%emt 0:00:55]} Re2 {[%emt 0:02:07]} 44. Rc4 {[%emt 0:03:39]} Rg2 {[%emt 0:04:20]} 45. Rdd4 {[%emt 0:00:18]} Re6 {[%emt 0:00:10]} 46. Kb2 {[%emt 0:01:53]} Re5 {[%emt 0:01:11]} 47. h5 {[%emt 0:02:38]} Rg1 {[%emt 0:02:29]} 48. a3 {[%emt 0:00:27]} bxa3+ {[%emt 0:00:18]} 49. Kxa3 {[%emt 0:00:02]} Rg5 {[%emt 0:00:16]} 50. Rf4 {[%emt 0:03:16]} Ra1+ {[%emt 0:00:42]} 51. Kb2 {[%emt 0:00:03]} Rg1 {[%emt 0:00:12]} 52. Ra4 {[%emt 0:01:40]} Rg2 {[%emt 0:02:01]} 53. Rf5 {[%emt 0:01:37]} R2xg4 {[%emt 0:05:11]} 54. Raxa5 {[%emt 0:01:26]} Rg2 {[%emt 0:01:58]} 55. Rfc5 {[%emt 0:01:32]} R5g4 {[%emt 0:00:49]} 56. Ka3 {[%emt 0:00:34]} Rh2 {[%emt 0:00:28]} 57. c4 {[%emt 0:00:28]} Rg3 {[%emt 0:00:57]} 58. Kb4 {[%emt 0:01:45]} Rhh3 {[%emt 0:01:04]} 59. Ra3 {[%emt 0:00:05]} Kg8 {[%emt 0:00:29]} 60. Rf5 {[%emt 0:00:49]} Rc3 {[%emt 0:01:40]} 61. c5 {[%emt 0:00:48]} Rc1 {[%emt 0:00:27]} 62. Kb5 {[%emt 0:00:20]} Kh7 {[%emt 0:00:10]} 63. Rd5 {[%emt 0:00:51]} Rhc3 {[%emt 0:01:52]} 64. Kb6 {[%emt 0:00:36]} R1c2 {[%emt 0:00:25]} 65. Kc6 {[%emt 0:01:00]} Rf2 {[%emt 0:01:28]} 66. Re5 {[%emt 0:01:04]} Rh2 {[%emt 0:00:30]} 67. Kd6 {[%emt 0:00:36]} Rh1 $2 {[%emt 0:00:15]} (67... Rf2 68. Ra5 Rxb3) 68. Rd5 {[%emt 0:01:11]} Rh2 {[%emt 0:00:15]} 69. c6 {[%emt 0:00:31]} Rhc2 {[%emt 0:00:13]} (69... Rf2 $142 70. Kc7 Rf6) 70. Ra6 $18 {[%emt 0:00:17]} Rxb3 {[%emt 0:00:10]} 71. c7 {[%emt 0:00:55]} Rbc3 {[%emt 0:00:58]} 72. Ra7 {[%emt 0:00:07]} Rc1 {[%emt 0:02:07]} 73. Kd7 {[%emt 0:00:34]} R3c2 {[%emt 0:00:21]} 74. Kd8 {[%emt 0:00:19]} Rf2 {[%emt 0:01:22]} 75. Kc8 {[%emt 0:00:43]} (75. c8=B $2 Rf8+ 76. Ke7 Rcxc8 $17 (76... Rfxc8 $2 77. Raa5 $19)) 75... Rf8+ {[%emt 0:00:46]} 76. Rd8 {[%emt 0:00:12]} Rf5 {[%emt 0:00:06]} 77. Kb8 {[%emt 0:00:24]} Rxh5 {[%emt 0:02:18]} 78. c8=Q {[%emt 0:00:10]} (78. c8=R Rxc8+ 79. Kxc8 Rc5+ 80. Kb7 Rf5 $18) 78... Rxc8+ {[%emt 0:00:09]} 79. Kxc8 {[%emt 0:00:06]} Rg5 {[%emt 0:00:30]} 80. Rd4 {[%emt 0:01:49]} h5 {[%emt 0:00:14]} 81. Kd7 {[%emt 0:00:08]} Kh6 {[%emt 0:00:16]} 82. Ke6 {[%emt 0:00:05]} Rg1 {[%emt 0:00:13]} (82... g6 $142 83. Ra8 Rf5) 83. Kf5 $18 {[%emt 0:00:39]} Rf1+ {[%emt 0:00:28]} 84. Rf4 {[%emt 0:00:24]} g6+ {[%emt 0:00:14]} 85. Ke4 {[%emt 0:00:02]} Rb1 {[%emt 0:00:32]} 86. Ra3 {[%emt 0:01:05]} Rb6 {[%emt 0:00:32]} 87. Kf3 {[%emt 0:00:13]} Rc6 {[%emt 0:01:27]} 88. Rfa4 {[%emt 0:00:08]} Rc8 {[%emt 0:00:17]} 89. Kg3 {[%emt 0:00:05]} Rc7 {[%emt 0:00:22]} 90. Kh3 {[%emt 0:00:18]} Rc8 {[%emt 0:01:27]} 91. Ra6 {[%emt 0:00:46]} Rc7 {[%emt 0:00:03]} 92. Rg3 {[%emt 0:02:01]} Rg7 {[%emt 0:00:02]} 93. Kg2 {[%emt 0:00:06]} Rg8 {[%emt 0:00:43]} 94. Kf2 {[%emt 0:00:11]} (94. Rb3 $142 Kg5 95. Rb5+ Kh6 96. Rbb6 h4 97. Kh3 Kh5 98. Ra5+ g5 99. Rb4) 94... Rg7 {[%emt 0:01:37]} 95. Rg1 {[%emt 0:00:04]} Rg8 {[%emt 0:00:09]} 96. Kf3 {[%emt 0:00:05]} Rg7 {[%emt 0:00:22]} 97. Kf4 {[%emt 0:00:13]} Rg8 {[%emt 0:00:20]} 98. Ke5 {[%emt 0:00:22]} Rg7 {[%emt 0:01:56]} 99. Kf6 {[%emt 0:01:47]} Rg8 {[%emt 0:00:03]} 100. Ra7 {[%emt 0:01:09]} Rf8+ {[%emt 0:00:36]} 101. Rf7 {[%emt 0:00:24]} Rg8 {[%emt 0:00:43]} 102. Rg2 {[%emt 0:00:48]} h4 {[%emt 0:00:09]} 103. Ke5 {[%emt 0:00:25]} Ra8 {[%emt 0:01:27]} 104. Kf4 {[%emt 0:00:45]} (104. Rf6 $142 Ra5+ 105. Kf4 Ra4+ 106. Ke5 Kh5 107. Rgxg6 (107. Rfxg6 h3 $18) 107... h3 108. Kf5 Kh4 109. Rg8) 104... g5+ {[%emt 0:00:08]} 105. Kg4 {[%emt 0:00:22]} ({Worse is} 105. Rxg5 Ra4+ 106. Kf5 Ra5+ 107. Kg4 Rxg5+ 108. Kh3 Rg3+ 109. Kh2 Rd3 $11) 105... Kg6 {[%emt 0:00:19]} 106. Rb7 {[%emt 0:00:02]} Ra4+ {[%emt 0:00:13]} 107. Kh3 {[%emt 0:00:02]} Ra5 {[%emt 0:00:18]} 108. Rgb2 {[%emt 0:00:11]} Kh5 {[%emt 0:00:42]} 109. Rb8 {[%emt 0:00:53]} Ra3+ {[%emt 0:01:05]} 110. Kh2 {[%emt 0:00:01]} Ra5 {[%emt 0:00:22]} 111. Rh8+ {[%emt 0:00:56]} Kg6 {[%emt 0:00:20]} 112. Rb3 {[%emt 0:00:14]} (112. Rb6+ $142 Kf5 113. Rf8+ Kg4 114. Rb2 Kh5 115. Rh8+ Kg6 116. Rg2 Rb5 117. Rxh4) 112... Kg7 {[%emt 0:00:15]} 113. Rhb8 {[%emt 0:00:07]} Kg6 {[%emt 0:00:46]} 114. Kh3 {[%emt 0:00:23]} Ra4 {[%emt 0:00:21]} 115. R3b6+ {[%emt 0:00:23]} Kf5 {[%emt 0:00:08]} 116. Rb5+ {[%emt 0:00:05]} 1-0

[Event "Festival Groningen-A 2024"]
[Site "Groningen"]
[Date "2024.12.26"]
[Round "5.4"]
[White "Albers, Sasa"]
[Black "Beerdsen, Thomas"]
[Result "0-1"]
[ECO "C70"]
[WhiteElo "2268"]
[BlackElo "2502"]
[Annotator "TA"]
[PlyCount "74"]
[EventDate "2024.12.21"]
[EventType "swiss"]
[EventCountry "NED"]
[SourceTitle "playchess.com"]
[Source "ChessBase"]
[SourceQuality "1"]
[TimeControl "40/5400+30:1800+30"]

{[%evp 9,74,27,58,47,69,39,51,53,54,67,47,23,24,25,26,34,47,8,10,10,53,-20,-20,-23,-8,-34,-27,-48,-29,-79,-69,-76,-73,-73,-34,-84,-77,-77,-78,-208,-209,-206,-210,-209,-76,-72,-73,-307,-300,-345,-310,-347,-347,-377,-383,-427,-424,-473,-464,-464,-447,-836,-847,-820,-786,-824,-822]} 1. e4 {[%emt 0:00:02]} e5 {[%emt 0:00:05]} 2. Nf3 {[%emt 0:00:03]} Nc6 {[%emt 0:00:06]} 3. Bb5 {[%emt 0:00:04]} a6 {[%emt 0:00:06]} 4. Ba4 {[%emt 0:00:02]} Nge7 {[%emt 0:00:07][%cal Bg8e7,Be7d5,Bd5f4,Bf4d3][%mdl 32]} 5. c3 {[%emt 0:00:40]} f6 {[%emt 0:00:06]} 6. d4 {[%emt 0:04:43]} d5 {[%emt 0:00:12]} 7. exd5 {[%emt 0:00:10]} Qxd5 {[%emt 0:00:15]} 8. dxe5 {[%emt 0:00:32] White is slightly better.} Bg4 {[%emt 0:01:18]} 9. Qxd5 {[%emt 0:06:09]} Nxd5 {[%emt 0:00:06]} 10. Bxc6+ {[%emt 0:13:31]} bxc6 {[%emt 0:00:25]} 11. Nbd2 {[%emt 0:03:18]} O-O-O {[%emt 0:25:13]} 12. O-O {[%emt 0:05:52]} Nf4 {[%emt 0:11:10]} 13. Ne4 {[%emt 0:11:22]} Bxf3 {[%emt 0:06:07]} 14. gxf3 {[%emt 0:00:09]} Nd3 {[%emt 0:00:29]} 15. Kg2 {[%emt 0:08:28]} (15. exf6 $14 gxf6 16. Nxf6) 15... Nxe5 $11 {[%emt 0:01:09]} 16. Be3 {[%emt 0:01:53]} Nd3 {[%emt 0:06:34]} 17. Rad1 {[%emt 0:09:10]} Be7 {[%emt 0:00:54]} 18. b3 {[%emt 0:20:05]} f5 {[%emt 0:05:07]} 19. Nd2 {[%emt 0:03:29]} (19. Ng3 $11) 19... Bf6 $17 {[%emt 0:04:54]} 20. Nb1 {[%emt 0:00:23]} Rhe8 {[%emt 0:11:59]} 21. f4 {[%emt 0:01:47]} Re4 {[%emt 0:03:01] Black is much more active.} 22. Nd2 {[%emt 0:02:04] [#]} ({Better is} 22. Kg3 $15) 22... Rxe3 $1 {[%emt 0:04:48]} 23. fxe3 {[%emt 0:00:21] [#] Threatens to win with Nb1.} Nb2 $1 {[%emt 0:00:06]} (23... Bxc3 $2 {loses.} 24. Nb1 Ba1 25. Kf3 $18) 24. Rb1 {[%emt 0:01:21]} (24. Kf2 $17) 24... Rxd2+ $19 {[%emt 0:00:10]} 25. Rf2 {[%emt 0:00:11]} Rxf2+ {[%emt 0:00:31]} ({Weaker is} 25... Bxc3 26. Rxd2 Bxd2 27. Rxb2 Bxe3 28. Re2 Bxf4 29. Re7 $16) 26. Kxf2 {[%emt 0:00:02] [#]} Bxc3 {[%emt 0:00:20]} (26... Nd3+ $1 $19 {is more deadly.} 27. Kf3 Bxc3) 27. Ke2 $17 {[%emt 0:00:30]} Bf6 {[%emt 0:01:43] aiming for ...Kd7.} 28. Rg1 $2 {[%emt 0:05:34]} (28. Rc1 $17 {was the only defense.} Kb7 29. Rc5) 28... Kd7 $19 {[%emt 0:00:34]} 29. Rg3 {[%emt 0:02:14]} h5 {[%emt 0:01:03]} 30. Rg1 {[%emt 0:00:43]} c5 {[%emt 0:00:42]} 31. Rc1 {[%emt 0:00:05]} Kc6 {[%emt 0:00:22]} 32. Rc2 {[%emt 0:00:57]} a5 {[%emt 0:00:28] Black is clearly winning.} 33. Rd2 {[%emt 0:00:30]} c4 {[%emt 0:01:54]} 34. bxc4 {[%emt 0:00:02]} Nxc4 {[%emt 0:00:15]} 35. Rc2 {[%emt 0:00:10]} (35. Rd1 $142) 35... Kd5 {[%emt 0:00:30]} 36. Kf3 {[%emt 0:00:24]} c5 {[%emt 0:00:08]} 37. h3 {[%emt 0:00:44]} Nd6 {[%emt 0:00:19] Weighted Error Value: White=0.47/Black=0.13 (very precise) .  Loses game:     	White=1     	---        Mistake:       	White=5     	Black=1      Inaccurate:     	White=2     	Black=2      OK:         	White=9     	Black=14     Best:        	White=1     	Black=2      Strong:       	---       	Black=1} 0-1